lending/lending_fUSD_20240120
["ID","MTS","AMOUNT","RATE_DAILY","PERIOD"]
[312332182,1705785038546,-295.34953421,0.00022998,2]
[312332184,1705785038556,-188.44142616,0.00022998,2]
[312332185,1705785038565,-278.73030459,0.00022998,2]
[312332187,1705785038575,-155.0,0.00022998,2]
[312332189,1705785038585,-2780.53772112,0.00022998,2]
[312332191,1705785038595,-407.29388735,0.00022999,2]
[312332193,1705785038604,-232.28181461,0.00022999,2]
[312332195,1705785038615,-3297.48423607,0.00022999,2]
[312332197,1705785038625,-3195.13608794,0.00022999,2]
[312332199,1705785038637,-250.89843054,0.00022999,4]
[312332201,1705785038649,-151.5463237,0.00022999,2]
[312332204,1705785038660,-150.0,0.00022999,2]
[312332205,1705785038671,-151.5463237,0.00022999,2]
[312332208,1705785038682,-151.5463237,0.00022999,2]
[312332210,1705785038693,-150.0,0.00022999,2]
[312332211,1705785038703,-151.5463237,0.00022999,2]
[312332213,1705785038714,-150.0,0.00022999,2]
[312332216,1705785038724,-151.5463237,0.00022999,2]
[312332217,1705785038736,-150.0,0.00022999,2]
[312332219,1705785038745,-151.5463237,0.00022999,2]
[312332221,1705785038755,-150.0,0.00022999,2]
[312332224,1705785038765,-151.5463237,0.00022999,2]
[312332225,1705785038774,-150.0,0.00022999,2]
[312332228,1705785038785,-151.5463237,0.00022999,2]
[312332230,1705785038796,-150.0,0.00022999,2]
[312332232,1705785038806,-151.5463237,0.00022999,2]
[312332233,1705785038815,-150.0,0.00022999,2]
[312332235,1705785038825,-151.5463237,0.00022999,2]
[312332238,1705785038834,-150.0,0.00022999,2]
[312332240,1705785038844,-151.5463237,0.00022999,2]
[312332242,1705785038853,-150.0,0.00022999,2]
[312332244,1705785038862,-150.0,0.00022999,2]
[312332246,1705785038871,-3202329.37511247,0.00022999,3]
[312332247,1705785038881,-2177418.54437057,0.00023,2]
[312332250,1705785038896,-374242.50499638,0.00023,2]
[312332252,1705785038906,-56467.70397467,0.00023,2]
[312332254,1705785038916,-103956.77504338,0.00023,2]
[312332257,1705785038927,-431486.96812764,0.00023,2]
[312332259,1705785038939,-134744.28444154,0.00023,2]
[312332261,1705785038953,-2349.81200394,0.00023,2]
[312332264,1705785038964,-5891.83484698,0.00023,2]
[312332271,1705785039029,-3343.78895881,0.00023,2]
[312332275,1705785039048,-473.62362058,0.00023,2]
[312332357,1705785040939,234.97295648,0.000196,2]
[312332358,1705785041224,-356.82225107,0.00021815,2]
[312332359,1705785041266,-166.91556168,0.00021815,2]
[312332360,1705785041276,-160.29,0.00022755,2]
[312332361,1705785041285,-731.12327268,0.000229,6]
[312332362,1705785041294,-15251.76172564,0.00023,2]
[312332363,1705785041306,-799.75135,0.00023,2]
[312332364,1705785041325,-284.91706472,0.00023,2]
[312332365,1705785041383,-257270.55358087,0.00023,2]
[312332366,1705785041394,-2967.04055708,0.00023,2]
[312332367,1705785041438,-345.59887772,0.00023,2]
[312332429,1705785043203,-347.08632442,0.00022999,2]
[312332432,1705785043215,-642.91367558,0.00022999,2]
[312332435,1705785043224,-298.33632462,0.00023,2]
[312332438,1705785043235,-1578.299999,0.00023,2]
[312332449,1705785043433,-376.94349572,0.00023,2]
[312332454,1705785046152,-155.33297372,0.00021706,2]
[312332455,1705785046162,-215.63475234,0.00021793,2]
[312332456,1705785046171,-603.53104327,0.00022998,2]
[312332457,1705785046181,-155.0,0.00022998,2]
[312332458,1705785046190,-1886.76555913,0.00022998,2]
[312332459,1705785046202,-718.23462083,0.00022998,2]
[312332460,1705785046211,-1.34372515,0.00022998,2]
[312332461,1705785046226,-232.95359262,0.00022998,2]
[312332462,1705785046236,-3950.74640738,0.00022999,2]
[312332463,1705785046253,-39039.47175571,0.00022999,2]
[312332464,1705785046262,-1204.08066504,0.00022999,2]
[312332465,1705785046271,-203.2267633,0.00022999,2]
[312332466,1705785046280,-643.63667904,0.00022999,2]
[312332467,1705785046289,-2212.53431436,0.00023,3]
[312332468,1705785046299,-1632.73275951,0.00023,3]
[312332469,1705785046308,-1644.91621875,0.00023,3]
[312332470,1705785046317,-305279.15863097,0.00023,2]
[312332471,1705785046330,-494.268,0.00023,2]
[312332472,1705785046438,-2274.78915779,0.00023,2]
[312332474,1705785060943,234.97295648,0.000196,2]
[312332475,1705785084943,234.69433276,0.000196,2]
[312332476,1705785104967,212.62659848,0.000196,2]
[312332477,1705785109589,155.82902494,0.000196,2]
[312332482,1705785125648,1631.54437658,0.000196,2]
[312332483,1705785125672,2000.0,0.000196,2]
[312332484,1705785125698,1551.7401012,0.000196,2]
[312332485,1705785390906,1866.471168,0.0003591,30]
[312332486,1705785409363,448.2598988,0.00019685,2]
[312332487,1705785409384,329.7801012,0.00019685,2]
[312332488,1705785439275,363.31,0.0001778,2]
[312332489,1705785446488,312.44,0.00019684,2]
[312332490,1705785487899,693.55,0.00019639,2]
[312332491,1705785490916,305.810498,0.0003591,30]
[312332492,1705785491789,4999.0,0.0003591,30]
[312332493,1705785536816,300.9198988,0.0001963,2]
[312332494,1705785536838,67.2401012,0.0001963,2]
[312332495,1705785562108,250.0,0.00019661,2]
[312332496,1705785600599,1682.7598988,0.00019624,2]
[312332497,1705785600620,2000.0,0.00019624,2]
[312332498,1705785600641,2000.0,0.00019624,2]
[312332499,1705785600662,1421.8501012,0.00019624,2]
[312332500,1705785683658,176.15,0.00019598,2]
[312332501,1705785694214,204.0,0.0001925,2]
[312332502,1705785700284,164.92,0.00019574,10]
[312332503,1705785760564,33.0798988,0.00019587,2]
[312332504,1705785760586,2000.0,0.00019587,2]
[312332505,1705785760607,2000.0,0.00019587,2]
[312332506,1705785760627,2000.0,0.00019587,2]
[312332507,1705785760647,2000.0,0.00019587,2]
[312332508,1705785760668,2000.0,0.00019587,2]
[312332509,1705785760689,2000.0,0.00019587,2]
[312332510,1705785760709,11866.9201012,0.00019587,2]
[312332511,1705785771292,250.89843054,0.00019574,2]
[312332512,1705785776669,226.11786442,0.00019599,2]
[312332513,1705785780344,500.0,0.0001959,2]
[312332514,1705785781157,253.07011013,0.00019599,2]
[312332515,1705785781544,155.0,0.00019599,2]
[312332516,1705785783566,2605.00017996,0.00019599,2]
[312332517,1705785786056,314.41237187,0.00019599,2]
[312332518,1705785787551,242.58443095,0.00019599,2]
[312332519,1705785788597,582.2441808,0.00019599,2]
[312332520,1705785789458,158.86466524,0.00019599,2]
[312332521,1705785789565,215.18715609,0.00019599,2]
[312332522,1705785789949,155.0,0.00019599,2]
[312332523,1705785790060,171.96178332,0.00019599,2]
[312332524,1705785793138,190.97652873,0.00019599,2]
[312332525,1705785795676,2903.08663668,0.00019599,2]
[312332526,1705785800950,1204.08066504,0.00019599,2]
[312332527,1705785801305,197.02284836,0.00019599,2]
[312332528,1705785802582,155.0,0.00019599,2]
[312332529,1705785803146,196.82515123,0.00019599,2]
[312332530,1705785805148,155.0,0.00019599,2]
[312332531,1705785805603,543.49839959,0.00019599,2]
[312332532,1705785808492,2140.25984846,0.00019599,2]
[312332533,1705785808801,155.0,0.00019599,2]
[312332534,1705785813661,155.0,0.00019599,2]
[312332535,1705785814547,220.51136302,0.00019599,2]
[312332536,1705785814778,228.3967642,0.00019599,2]
[312332537,1705785815076,233.29692962,0.00019599,2]
[312332538,1705785815166,162.27355043,0.00019599,2]
[312332539,1705785815402,155.0,0.00019599,2]
[312332540,1705785817021,161.84530984,0.00019599,2]
[312332541,1705785819858,759.28292396,0.00019599,2]
[312332542,1705785824659,494.84174762,0.00019599,2]
[312332543,1705785827121,155.0,0.00019599,2]
[312332544,1705785829076,270.13923734,0.00019599,2]
[312332545,1705785832650,1365.33757079,0.00019599,2]
[312332546,1705785837638,2320.76864865,0.00019599,2]
[312332547,1705785841433,155.0,0.00019599,2]
[312332548,1705785845012,160.73027648,0.00019598,2]
[312332549,1705785845760,1709.96186533,0.00019599,2]
[312332551,1705785855758,155.0,0.00019599,2]
[312332552,1705785855974,473.45584329,0.00019599,2]
[312332553,1705785894385,940.96622262,0.00019599,2]
[312332556,1705785942539,373.6,0.00017754,2]
[312332557,1705785943364,1041.72732894,0.00019599,2]
[312332558,1705785976377,155.0,0.00019599,2]
[312332559,1705785981301,158.86466524,0.00019599,2]
[312332560,1705785983068,242.58443095,0.00019599,2]
[312332561,1705785985102,215.18715609,0.00019599,2]
[312332562,1705785985616,306.8,0.00019523,2]
[312332563,1705785988680,190.97652873,0.00019599,2]
[312332564,1705785992687,155.0,0.00019599,2]
[312332565,1705785993507,1897.75273507,0.00019599,2]
[312332566,1705785999616,282.90032781,0.00019599,2]
[312332567,1705786001698,4387.40271906,0.00019599,2]
[312332568,1705786002073,250.0,0.0001954,2]
[312332569,1705786005144,543.49839959,0.00019599,2]
[312332570,1705786009725,364.22141274,0.00019599,2]
[312332571,1705786009795,228.3967642,0.00019599,2]
[312332572,1705786010584,161.84530984,0.00019599,2]
[312332573,1705786012020,2140.25984846,0.00019599,2]
[312332574,1705786014400,759.28292396,0.00019599,2]
[312332575,1705786016675,162.27355043,0.00019599,2]
[312332576,1705786018904,155.0,0.00019599,2]
[312332577,1705786026078,220.51136302,0.00019599,2]
[312332578,1705786032101,171.96178332,0.00019599,2]
[312332579,1705786038242,1365.33757079,0.00019599,2]
[312332580,1705786062880,5937.54888629,0.00019599,2]
[312332581,1705786075110,270.13923734,0.00019599,2]
[312332582,1705786099785,14653.18077813,0.000196,2]
[312332583,1705786138436,161.91106801,0.00019499,2]
[312332603,1705786232680,-201.91,0.00019504,2]
[312332604,1705786232689,-647.1164,0.00019533,2]
[312332605,1705786232701,-718.22117079,0.00019533,2]
[312332606,1705786232710,-171.96178332,0.00019534,2]
[312332607,1705786232720,-759.28292396,0.00019535,2]
[312332608,1705786232729,-167.1,0.00019536,2]
[312332609,1705786232739,-200.0,0.00019543,2]
[312332610,1705786232749,-477.28,0.00019548,2]
[312332611,1705786232760,-215.63475234,0.00019578,2]
[312332612,1705786232769,-150.0,0.00019578,2]
[312332613,1705786232779,-600.72662249,0.00019579,2]
[312332614,1705786232790,-3541.94354438,0.00019579,2]
[312332615,1705786232802,-3658.84034977,0.00019579,2]
[312332616,1705786232814,-1652.31000009,0.00019579,2]
[312332617,1705786232827,-14446.17948327,0.00019579,2]
[312332618,1705786232837,-202.76099161,0.00019586,2]
[312332619,1705786232847,-222.98,0.00019587,2]
[312332620,1705786232857,-10560.1340318,0.00019594,2]
[312332621,1705786232867,-4274.40730541,0.00019595,2]
[312332622,1705786232876,-5445.7964682,0.00019596,2]
[312332623,1705786232886,-2116.30168679,0.000196,2]
[312332624,1705786232895,-189.41228052,0.00019613,2]
[312332625,1705786233181,-56.16771948,0.00019613,2]
[312332626,1705786233196,-499.99,0.00019684,2]
[312332627,1705786233208,-500.03,0.00019684,2]
[312332628,1705786233220,-17.39097271,0.00019689,2]
[312332629,1705786233234,-137.55902729,0.00019689,2]
[312332630,1705786233246,-156.22,0.00019767,2]
[312332631,1705786233259,-160.0,0.00019782,2]
[312332632,1705786233270,-153.14,0.000198,2]
[312332633,1705786233280,-116.374551,0.00019805,2]
[312332634,1705786233295,-261.185449,0.00019805,2]
[312332635,1705786233307,-177.61,0.00019832,2]
[312332636,1705786233319,-153.14,0.00019886,2]
[312332637,1705786233331,-125.30554328,0.00019924,2]
[312332638,1705786233354,-36.60552465,0.00019924,2]
[312332639,1705786233367,-153.14,0.00019972,2]
[312332640,1705786233379,-155.0,0.0002,2]
[312332641,1705786233392,-815.76670769,0.0002,2]
[312332654,1705786238210,-2317.36210758,0.0002,2]
[312332655,1705786238226,-62.00727267,0.0002,2]
[312332656,1705786238236,-155.0,0.0002,2]
[312332659,1705786238247,-373.6,0.00020018,2]
[312332661,1705786238258,-153.14,0.00020058,2]
[312332663,1705786238268,-217.9,0.00020105,2]
[312332665,1705786238279,-217.9,0.00020126,2]
[312332666,1705786238289,-153.14,0.00020144,2]
[312332667,1705786238300,-217.9,0.00020147,2]
[312332668,1705786238310,-217.9,0.00020169,2]
[312332669,1705786238321,-217.9,0.0002019,2]
[312332670,1705786238331,-217.9,0.00020211,2]
[312332671,1705786238342,-153.14,0.0002023,2]
[312332672,1705786238352,-217.9,0.00020232,2]
[312332673,1705786238364,-172.37,0.00020242,2]
[312332674,1705786238375,-217.9,0.00020253,2]
[312332675,1705786238386,-270.13923734,0.00020269,2]
[312332676,1705786238397,-217.9,0.00020274,2]
[312332677,1705786238408,-204.0,0.00020288,2]
[312332678,1705786238418,-203.0,0.00020288,2]
[312332679,1705786238429,-217.9,0.00020295,2]
[312332680,1705786238440,-153.14,0.00020316,2]
[312332681,1705786238450,-217.9,0.00020317,2]
[312332682,1705786238461,-166.02,0.00020337,2]
[312332683,1705786238472,-217.9,0.00020338,2]
[312332684,1705786238482,-161.91106793,0.00020349,2]
[312332685,1705786238493,-217.9,0.00020359,2]
[312332686,1705786238504,-217.9,0.0002038,2]
[312332687,1705786238515,-217.9,0.00020401,2]
[312332688,1705786238526,-153.14,0.00020402,2]
[312332689,1705786238537,-217.9,0.00020422,2]
[312332690,1705786238549,-217.9,0.00020443,2]
[312332691,1705786238560,-217.9,0.00020465,2]
[312332692,1705786238570,-217.9,0.00020486,2]
[312332693,1705786238580,-153.14,0.00020488,2]
[312332694,1705786238590,-217.9,0.00020507,2]
[312332695,1705786238600,-2000.0,0.00020548,2]
[312332696,1705786238610,-153.14,0.00020574,2]
[312332697,1705786238621,-153.14,0.0002066,2]
[312332698,1705786238632,-160.0,0.00020713,2]
[312332699,1705786238642,-153.14,0.00020746,2]
[312332700,1705786238653,-161.91106793,0.00020774,2]
[312332701,1705786238663,-153.14,0.00020832,2]
[312332702,1705786238674,-731.16640343,0.00021,2]
[312332703,1705786238684,-306.8,0.00021167,2]
[312332704,1705786238697,-161.91106793,0.000212,2]
[312332705,1705786238708,-3639.31483288,0.00021229,2]
[312332706,1705786238722,-2511.8550685,0.00021231,5]
[312332708,1705786238733,-42828.17745799,0.00021232,2]
[312332710,1705786238744,-572.14,0.00021281,2]
[312332712,1705786238754,-4833.65107293,0.00021396,2]
[312332714,1705786238764,-388.55723841,0.00021397,2]
[312332716,1705786238774,-155.92143527,0.00021506,2]
[312332718,1705786238783,-1157.33085401,0.00021512,3]
[312332720,1705786238795,-211.39780005,0.00021512,2]
[312332723,1705786238805,-1070.43397792,0.00021512,2]
[312332725,1705786238815,-295.34953421,0.00021512,2]
[312332727,1705786238824,-155.0,0.00021512,2]
[312332729,1705786238834,-248.21561639,0.00021512,2]
[312332731,1705786238844,-318.31330327,0.00021512,2]
[312332733,1705786238854,-510.2864436,0.00021512,2]
[312332735,1705786238863,-316.9848755,0.00021512,2]
[312332737,1705786238873,-246.69922222,0.00021512,2]
[312332739,1705786238883,-2605.01052542,0.00021512,2]
[312332741,1705786238894,-176.90040225,0.00021512,2]
[312332744,1705786238904,-1767.60331455,0.00021512,2]
[312332746,1705786238914,-324.06466981,0.00021512,2]
[312332748,1705786238924,-253.04140022,0.00021512,2]
[312332750,1705786238934,-258.85887909,0.00021512,2]
[312332752,1705786238945,-313.95866165,0.00021512,2]
[312332754,1705786238955,-2897.94389095,0.00021512,2]
[312332757,1705786238965,-196.41393607,0.00021512,2]
[312332759,1705786238975,-4785.03700035,0.00021512,2]
[312332761,1705786238986,-928.85930515,0.00021512,2]
[312332763,1705786238996,-155.0,0.00021512,2]
[312332765,1705786239006,-257.41602689,0.00021512,2]
[312332767,1705786239016,-196.62673468,0.00021512,2]
[312332769,1705786239027,-384.58030079,0.00021512,2]
[312332772,1705786239039,-268.63495185,0.00021512,2]
[312332774,1705786239049,-232.95303119,0.00021512,2]
[312332776,1705786239059,-232.28181461,0.00021513,2]
[312332778,1705786239070,-407.29388735,0.00021513,2]
[312332780,1705786239080,-2500.0,0.00021516,2]
[312332782,1705786239090,-995.64884023,0.00021516,2]
[312332784,1705786239100,-210.0,0.00021536,2]
[312332786,1705786239111,-161.60906664,0.00021612,2]
[312332788,1705786239122,-211.35788285,0.00021612,2]
[312332790,1705786239132,-227.67731839,0.00021612,2]
[312332792,1705786239142,-161.9854718,0.00021612,2]
[312332794,1705786239151,-196.86523687,0.00021612,2]
[312332796,1705786239161,-188.14874811,0.00021612,2]
[312332827,1705786239439,-220.37851532,0.00021612,2]
[312332830,1705786239455,-476.10103003,0.00021613,2]
[312332832,1705786239466,-1746.75479679,0.00021614,2]
[312332834,1705786239476,-203.29975543,0.00021614,2]
[312332836,1705786239486,-155.0,0.00021614,2]
[312332838,1705786239496,-1178.12872526,0.00021614,2]
[312332840,1705786239504,-1591.72396744,0.00021614,2]
[312332842,1705786239513,-155.0,0.00021614,2]
[312332844,1705786239522,-155.0,0.00021614,2]
[312332846,1705786239532,-400.25276388,0.00021614,2]
[312332848,1705786239541,-155.97034652,0.00021614,2]
[312332850,1705786239550,-265.22972054,0.00021614,2]
[312332852,1705786239559,-189.11684233,0.00021614,2]
[312332854,1705786239569,-2814.33259999,0.00021614,2]
[312332859,1705786239602,-1493.92367476,0.00021614,2]
[312332861,1705786239611,-155.13567131,0.00021614,2]
[312332863,1705786239620,-2143.98939105,0.00021614,2]
[312332865,1705786239629,-24327.1934238,0.00021614,2]
[312332867,1705786239638,-155.0,0.00021614,2]
[312332869,1705786239648,-1166.50407624,0.00021614,2]
[312332871,1705786239657,-155.0,0.00021614,2]
[312332873,1705786239666,-155.74477967,0.00021614,2]
[312332875,1705786239675,-160.2014579,0.00021614,2]
[312332877,1705786239685,-155.0,0.00021614,2]
[312332879,1705786239694,-155.16599658,0.00021614,2]
[312332881,1705786239703,-1395.90722431,0.00021614,2]
[312332883,1705786239713,-155.7702296,0.00021614,2]
[312332885,1705786239722,-155.27713894,0.00021614,2]
[312332887,1705786239731,-472.87546881,0.00021614,2]
[312332889,1705786239740,-155.49151411,0.00021614,2]
[312332891,1705786239749,-939.48072798,0.00021614,2]
[312332893,1705786239758,-1137.38262952,0.00021614,2]
[312332895,1705786239767,-915.350249,0.00021614,2]
[312332897,1705786239777,-452.53104327,0.00021614,2]
[312332899,1705786239786,-155.0,0.00021614,2]
[312332901,1705786239795,-157.90896986,0.00021614,2]
[312332903,1705786239804,-242.2855231,0.00021614,2]
[312332905,1705786239814,-214.83546013,0.00021614,2]
[312332907,1705786239823,-288.38802945,0.00021614,2]
[312332908,1705786239832,-3727.34198014,0.00021614,2]
[312332911,1705786239844,-786.5464571,0.00021614,2]
[312332913,1705786239855,-349.19474161,0.00021614,2]
[312332916,1705786239870,-252.000007,0.00021614,2]
[312332921,1705786239913,-251.70096473,0.00021614,2]
[312332924,1705786239924,-623.63349768,0.00021614,2]
[312332926,1705786239941,-1061.1227723,0.00021614,2]
[312332927,1705786239952,-25131.30913795,0.00021614,2]
[312332928,1705786239961,-155.0,0.00021614,2]
[312332929,1705786239971,-3591.25488907,0.00021615,2]
[312332930,1705786239980,-100000.0,0.00021616,2]
[312332931,1705786239988,-245000.0,0.00021616,2]
[312332932,1705786239998,-171.94541592,0.00021619,2]
[312332933,1705786240007,-161.91106793,0.00021625,2]
[312332934,1705786240016,-160.0,0.00021643,2]
[312332935,1705786240026,-2274.85,0.00021644,2]
[312332936,1705786240038,-995.64884023,0.00021714,2]
[312332937,1705786240047,-672.31148567,0.00021908,2]
[312332938,1705786240056,-995.64884023,0.00021911,2]
[312332939,1705786240065,-250.0,0.00021918,2]
[312332940,1705786240075,-25797.93,0.00021918,2]
[312332941,1705786240085,-500.0,0.00021999,2]
[312332942,1705786240094,-257.02,0.00021999,2]
[312332943,1705786240103,-711.4383273,0.00022,2]
[312332944,1705786240113,-2780.53772112,0.00022,2]
[312332945,1705786240122,-278.73030459,0.00022,2]
[312332946,1705786240132,-161.91106793,0.0002205,2]
[312332947,1705786240142,-418.21818727,0.00022078,2]
[312332948,1705786240151,-1116.45690923,0.00022078,2]
[312332949,1705786240160,-995.64884023,0.00022109,2]
[312332950,1705786240170,-260.18531912,0.00022136,2]
[312332951,1705786240179,-778.04,0.00022145,2]
[312332952,1705786240188,-377.56,0.0002228,2]
[312332953,1705786240198,-373.6,0.00022282,2]
[312332954,1705786240207,-995.64884023,0.00022307,2]
[312332955,1705786240217,-204.0,0.00022378,5]
[312332956,1705786240226,-2274.85,0.00022445,2]
[312332957,1705786240235,-161.91106793,0.00022475,2]
[312332958,1705786240245,-995.64884023,0.00022505,2]
[312332959,1705786240254,-160.0,0.00022573,2]
[312332960,1705786240263,-180.0,0.00022603,2]
[312332961,1705786240273,-995.64884023,0.00022702,2]
[312332962,1705786240282,-10000.0,0.0002274,2]
[312332963,1705786240291,-825.75281893,0.000228,2]
[312332964,1705786240300,-825.75281882,0.00022809,2]
[312332965,1705786240309,-306.8,0.00022811,2]
[312332966,1705786240318,-800.0,0.00022815,2]
[312332967,1705786240327,-800.0,0.00022816,2]
[312332968,1705786240336,-800.0,0.00022816,2]
[312332969,1705786240346,-800.0,0.00022816,2]
[312332970,1705786240355,-800.0,0.00022816,2]
[312332971,1705786240365,-825.75281882,0.00022818,2]
[312332972,1705786240374,-825.75281882,0.00022827,2]
[312332973,1705786240383,-825.75281882,0.00022836,2]
[312332974,1705786240393,-825.75281882,0.00022845,2]
[312332975,1705786240402,-825.75281882,0.00022855,2]
[312332976,1705786240411,-825.75281882,0.00022864,2]
[312332977,1705786240421,-825.75281882,0.00022873,2]
[312332978,1705786240430,-825.75281882,0.00022882,2]
[312332979,1705786240439,-500.0,0.00022885,2]
[312332980,1705786240449,-500.0,0.00022885,2]
[312332981,1705786240458,-825.75281882,0.00022891,2]
[312332982,1705786240467,-843.7737,0.000229,2]
[312332983,1705786240476,-505905.04796851,0.000229,2]
[312332984,1705786240486,-1000.0,0.000229,2]
[312332985,1705786240495,-1071.0,0.000229,2]
[312332986,1705786240504,-825.75281882,0.000229,2]
[312332987,1705786240513,-160.34716541,0.000229,2]
[312332988,1705786240522,-995.64884023,0.000229,2]
[312332989,1705786240531,-360.80839164,0.000229,2]
[312332990,1705786240540,-227.36657171,0.000229,2]
[312332991,1705786240549,-161.91106793,0.000229,2]
[312332992,1705786240559,-826.03829374,0.000229,2]
[312332993,1705786240568,-177.91751826,0.000229,2]
[312332994,1705786240577,-2973.36016889,0.000229,2]
[312332995,1705786240586,-2973.36016885,0.000229,2]
[312332996,1705786240595,-2973.36016885,0.000229,2]
[312332997,1705786240604,-2973.36016885,0.000229,2]
[312332998,1705786240614,-2973.36016885,0.000229,2]
[312332999,1705786240623,-2973.36016885,0.000229,2]
[312333000,1705786240632,-2973.36016885,0.000229,2]
[312333002,1705786240641,-672.31148567,0.0002299,2]
[312333003,1705786240650,-672.31148567,0.0002299,2]
[312333004,1705786240659,-276.45925591,0.00022997,2]
[312333005,1705786240668,-192.48571215,0.00022997,2]
[312333006,1705786240677,-302.63214907,0.00022997,2]
[312333007,1705786240686,-844.22464915,0.00022998,2]
[312333008,1705786240695,-718.91873743,0.00022998,4]
[312333009,1705786240704,-628.6804983,0.00022998,2]
[312333010,1705786240713,-155.0,0.00022998,2]
[312333011,1705786240722,-263.32899145,0.00022998,2]
[312333012,1705786240732,-3327.03038204,0.00022998,2]
[312333013,1705786240740,-310.08362313,0.00022998,2]
[312333014,1705786240749,-1334.28942079,0.00022998,2]
[312333016,1705786240758,-222.82839874,0.00022998,2]
[312333017,1705786240767,-302.15300619,0.00022998,2]
[312333018,1705786240776,-244.84553355,0.00022998,2]
[312333019,1705786240786,-155.0,0.00022998,2]
[312333020,1705786240795,-155.0,0.00022998,2]
[312333021,1705786240804,-204.40930052,0.00022998,2]
[312333022,1705786240813,-3855.4127161,0.00022998,2]
[312333023,1705786240822,-155.16041998,0.00022998,2]
[312333024,1705786240831,-155.0,0.00022998,2]
[312333025,1705786240840,-155.0,0.00022998,2]
[312333026,1705786240849,-155.19358976,0.00022998,2]
[312333027,1705786240859,-543.0368942,0.00022998,2]
[312333028,1705786240868,-155.0,0.00022998,2]
[312333029,1705786240877,-2617.2932945,0.00022998,2]
[312333030,1705786240886,-234.33508647,0.00022998,2]
[312333031,1705786240895,-217.97798028,0.00022998,2]
[312333032,1705786240905,-177.85048408,0.00022998,2]
[312333033,1705786240914,-155.0,0.00022998,2]
[312333034,1705786240924,-230.58874034,0.00022998,2]
[312333035,1705786240934,-4245.70602795,0.00022998,2]
[312333036,1705786240943,-155.0,0.00022998,2]
[312333037,1705786240952,-155.0,0.00022998,2]
[312333038,1705786240963,-1045.24138243,0.00022999,2]
[312333039,1705786240973,-401.71909724,0.00022999,2]
[312333040,1705786240982,-3297.48423607,0.00022999,2]
[312333041,1705786240993,-150.01,0.00022999,2]
[312333042,1705786241003,-151.5463237,0.00022999,2]
[312333043,1705786241013,-150.0,0.00022999,2]
[312333044,1705786241024,-151.5463237,0.00022999,2]
[312333045,1705786241036,-150.0,0.00022999,2]
[312333046,1705786241046,-151.5463237,0.00022999,2]
[312333047,1705786241056,-150.0,0.00022999,2]
[312333048,1705786241065,-151.5463237,0.00022999,2]
[312333049,1705786241075,-150.0,0.00022999,2]
[312333050,1705786241086,-151.5463237,0.00022999,2]
[312333051,1705786241096,-150.0,0.00022999,2]
[312333052,1705786241108,-151.5463237,0.00022999,2]
[312333053,1705786241119,-150.0,0.00022999,2]
[312333054,1705786241129,-151.5463237,0.00022999,2]
[312333055,1705786241139,-150.0,0.00022999,2]
[312333056,1705786241148,-3329698.65453854,0.00022999,3]
[312333057,1705786241158,-174617.6277997,0.00023,2]
[312333058,1705786241167,-1278821.04829758,0.00023,2]
[312333059,1705786241181,-440869.00897105,0.00023,2]
[312333060,1705786241193,-103956.77504338,0.00023,2]
[312333061,1705786241205,-4785.94954939,0.00023,2]
[312333062,1705786241229,-2715.51895006,0.00023,2]
[312333063,1705786241241,-639.0403552,0.00023,2]
[312333064,1705786241252,-3362.12,0.00023,2]
[312333065,1705786241264,-8190.40158375,0.00023,2]
[312333066,1705786241275,-3170.93065347,0.00023,2]
[312333067,1705786241303,-1907.75411288,0.00023,2]
[312333068,1705786241314,-2978.14036837,0.00023,2]
[312333069,1705786241325,-2640.88972985,0.00023,2]
[312333070,1705786241598,-155.0,0.0002,2]
[312333071,1705786241608,-115.62471335,0.000229,2]